fUSD/lending_fUSD_20250309
["ID","MTS","AMOUNT","RATE_DAILY","PERIOD"]
[355732968,1741515048902,-151.0,9.192e-05,2]
[355732970,1741515048913,-151.0,9.192e-05,2]
[355732973,1741515048924,-151.0,9.192e-05,2]
[355732975,1741515048935,-217.891877,9.192e-05,2]
[355732977,1741515048945,-151.0,9.192e-05,2]
[355732979,1741515048956,-217.891877,9.192e-05,2]
[355732981,1741515048967,-300.53916,9.192e-05,2]
[355732983,1741515048978,-377.223535,9.192e-05,2]
[355732985,1741515048989,-377.223535,9.192e-05,2]
[355732988,1741515048999,-8298.16,9.192e-05,2]
[355732990,1741515049011,-906.0,9.192e-05,2]
[355732992,1741515049022,-656.36,9.192e-05,2]
[355732994,1741515049033,-1521.2,9.192e-05,2]
[355732997,1741515049044,-151.0,9.192e-05,2]
[355732999,1741515049056,-151.0,9.192e-05,2]
[355733001,1741515049067,-1460.66385816,9.192e-05,2]
[355733005,1741515049101,-201.27614184,9.192e-05,2]
[355733008,1741515049112,-90.41421251,9.192e-05,2]
[355733011,1741515049133,-60.58578749,9.192e-05,2]
[355733013,1741515049144,-191.07738216,9.192e-05,2]
[355733016,1741515049157,-717.61790131,9.192e-05,2]
[355733019,1741515049181,-586.26471653,9.192e-05,2]
[355733021,1741515049192,-422.389313,9.192e-05,2]
[355733024,1741515049203,-422.389313,9.192e-05,2]
[355733026,1741515049214,-286.35665747,9.192e-05,2]
[355733034,1741515049349,-334.38910453,9.192e-05,2]
[355733036,1741515049360,-240.61088297,9.192e-05,2]
[355733039,1741515049374,-963.95911703,9.192e-05,2]
[355733041,1741515049385,-408.51841449,9.192e-05,2]
[355733195,1741515212499,-189.562235,8.178e-05,2]
[355733204,1741515733994,-150.0,8.166e-05,2]
[355733208,1741515836825,-151.02340468,8.157e-05,2]
[355733242,1741516138520,-3687.29577389,8.157e-05,2]
[355733243,1741516138564,-51.56082143,8.157e-05,2]
[355733244,1741516138593,-300.0,8.165e-05,2]
[355733245,1741516138621,-3335.73495246,8.166e-05,2]
[355733246,1741516138667,-3687.29577389,8.166e-05,2]
[355733247,1741516138705,-3687.29577389,8.166e-05,2]
[355733248,1741516138752,-2238.50349976,8.166e-05,2]
[355733249,1741516138782,-1448.79227413,8.219e-05,2]
[355733250,1741516138823,-259.89772587,8.219e-05,2]
[355733251,1741516138854,-206.14,8.24e-05,2]
[355733252,1741516138884,-200.0,8.246e-05,2]
[355733253,1741516138913,-696.02656301,8.3e-05,2]
[355733254,1741516138947,-1246.9314,8.301e-05,2]
[355733284,1741516235685,-3094.05519288,8.142e-05,2]
[355733285,1741516235697,-2114.76083038,8.142e-05,2]
[355733286,1741516235707,-1441.07397922,8.142e-05,2]
[355733287,1741516235718,-5458.6877731,8.142e-05,2]
[355733288,1741516235730,-1104.558,8.142e-05,2]
[355733289,1741516235805,-493.78059,8.142e-05,2]
[355733290,1741516235870,-10193.08363442,8.142e-05,2]
[355733291,1741516235880,-162.97,8.155e-05,2]
[355733292,1741516235890,-162.97,8.4e-05,2]
[355733293,1741516235899,-162.97,8.644e-05,2]
[355733294,1741516235909,-979.83,9.013e-05,2]
[355733295,1741516235919,-941.38,9.013e-05,2]
[355733296,1741516235928,-261.71,9.013e-05,2]
[355733297,1741516235938,-578.60287821,9.013e-05,2]
[355733298,1741516235947,-150.0,9.069e-05,2]
[355733299,1741516235957,-150.0,9.071e-05,2]
[355733300,1741516235966,-150.0,9.072e-05,2]
[355733301,1741516235975,-1000.0,9.078e-05,2]
[355733302,1741516235985,-150.0,9.082e-05,2]
[355733303,1741516235994,-2279.5212,9.09e-05,2]
[355733304,1741516236005,-1000.0,9.095e-05,2]
[355733305,1741516236015,-550.7718312,9.1e-05,2]
[355733306,1741516236024,-150.0,9.108e-05,2]
[355733307,1741516236033,-1301.54,9.109e-05,2]
[355733308,1741516236042,-2441.38,9.109e-05,2]
[355733309,1741516236052,-472.52125219,9.109e-05,2]
[355733310,1741516236061,-959.77,9.109e-05,2]
[355733311,1741516236070,-1962.11,9.109e-05,2]
[355733312,1741516236080,-939.38,9.109e-05,2]
[355733313,1741516236090,-2235.38,9.109e-05,2]
[355733314,1741516236099,-500.0,9.109e-05,2]
[355733315,1741516236109,-500.0,9.109e-05,2]
[355733316,1741516236118,-500.0,9.109e-05,2]
[355733317,1741516236127,-500.0,9.109e-05,2]
[355733318,1741516236141,-1236.45,9.109e-05,2]
[355733319,1741516236150,-500.0,9.109e-05,2]
[355733320,1741516236159,-319.77092937,9.109e-05,2]
[355733321,1741516236169,-500.0,9.109e-05,2]
[355733323,1741516236180,-500.0,9.109e-05,2]
[355733325,1741516236189,-1002.05,9.109e-05,2]
[355733327,1741516236199,-589.71,9.109e-05,2]
[355733329,1741516236208,-516.08077712,9.109e-05,2]
[355733330,1741516236218,-500.0,9.109e-05,2]
[355733333,1741516236228,-257.68968683,9.11e-05,2]
[355733334,1741516236237,-21277.46663369,9.11e-05,2]
[355733338,1741516236267,-1032.43087862,9.11e-05,2]
[355733341,1741516236278,-903.8327409,9.11e-05,2]
[355733348,1741516237576,-304.28076881,9.11e-05,2]
[355733349,1741516237696,-10294.51300041,9.11e-05,2]
[355733350,1741516237708,-4655.0074,9.11e-05,2]
[355733351,1741516237719,-11379.35288948,9.11e-05,2]
[355733352,1741516237730,-996.48688223,9.11e-05,2]
[355733353,1741516237759,-6291.33698033,9.11e-05,2]
[355733407,1741516239678,-500.0,9.109e-05,2]
[355733408,1741516239687,-1935.28049573,9.11e-05,2]
[355733409,1741516239745,-3498.72139496,9.11e-05,2]
[355733410,1741516239756,-5063.75947853,9.11e-05,2]
[355733411,1741516239767,-3800.0,9.11e-05,2]
[355733448,1741516242662,-886.68999997,8.897e-05,2]
[355733449,1741516242672,-568.34,9.109e-05,2]
[355733450,1741516242681,-164125.36570546,9.11e-05,2]
[355733451,1741516242722,-2059.71063401,9.11e-05,2]
[355733456,1741516243091,-856.34549,9.11e-05,2]
[355733472,1741516245561,-626.49162665,9.091e-05,2]
[355733473,1741516245682,-1080.36536195,9.091e-05,2]
[355733481,1741516245745,-347.5209528,9.091e-05,2]
[355733483,1741516245757,-445.6220586,9.091e-05,2]
[355733485,1741516245767,-154.9279414,9.109e-05,2]
[355733487,1741516245778,-610.3120586,9.109e-05,2]
[355733489,1741516245788,-4483.01206992,9.11e-05,2]
[355733494,1741516245865,-2286.08370406,9.11e-05,2]
[355733510,1741516506012,151.0,0.00028,120]
[355733524,1741517336054,-300.0,8.143e-05,2]
[355733525,1741517336083,-3808.20526506,8.144e-05,2]
[355733526,1741517336116,-4108.20526506,8.144e-05,2]
[355733527,1741517336152,-4108.20526506,8.144e-05,2]
[355733528,1741517336219,-4108.20526506,8.144e-05,2]
[355733529,1741517336275,-4108.20526506,8.144e-05,2]
[355733530,1741517336330,-3658.9736747,8.144e-05,2]
[355733531,1741517336360,-301.02,8.147e-05,2]
[355733532,1741517336391,-148.21159036,8.176e-05,2]
[355733533,1741517336429,-231.25840964,8.176e-05,2]
[355733534,1741517336459,-1000.0,8.219e-05,2]
[355733535,1741517336488,-206.14,8.219e-05,2]
[355733536,1741517336522,-1727.9096884,8.219e-05,2]
[355733582,1741517431865,-10.2003116,8.219e-05,2]
[355733583,1741517431876,-285.75799881,8.706e-05,2]
[355733584,1741517432014,-5866.73410119,8.706e-05,2]
[355733585,1741517432134,-1279.337657,8.804e-05,2]
[355733586,1741517432145,-1606.355706,8.804e-05,2]
[355733587,1741517432156,-1279.337657,8.806e-05,2]
[355733588,1741517432168,-1606.355706,8.806e-05,2]
[355733589,1741517432180,-150.0,8.807e-05,2]
[355733590,1741517432191,-1279.337657,8.808e-05,2]
[355733591,1741517432202,-1279.337657,8.808e-05,2]
[355733592,1741517432214,-1606.355706,8.808e-05,2]
[355733593,1741517432225,-1606.355706,8.808e-05,2]
[355733594,1741517432237,-150.0,8.959e-05,2]
[355733595,1741517432251,-1665.15868361,8.99e-05,3]
[355733596,1741517432263,-1279.337657,9.078e-05,2]
[355733597,1741517432275,-1606.355706,9.078e-05,2]
[355733598,1741517432289,-512.31,9.078e-05,2]
[355733599,1741517432301,-1279.337657,9.08e-05,2]
[355733600,1741517432315,-1606.355706,9.08e-05,2]
[355733601,1741517432329,-150.22,9.096e-05,2]
[355733602,1741517432346,-150.0,9.096e-05,2]
[355733603,1741517432358,-150.0,9.096e-05,2]
[355733604,1741517432369,-360.73559136,9.1e-05,2]
[355733605,1741517432380,-500.0,9.108e-05,2]
[355733606,1741517432391,-500.0,9.108e-05,2]
[355733607,1741517432401,-500.0,9.108e-05,2]
[355733608,1741517432413,-317.37506773,9.108e-05,2]
[355733609,1741517432423,-500.0,9.108e-05,2]
[355733610,1741517432435,-500.0,9.108e-05,2]
[355733611,1741517432446,-500.0,9.108e-05,2]
[355733612,1741517432457,-500.0,9.108e-05,2]
[355733613,1741517432468,-500.0,9.108e-05,2]
[355733614,1741517432480,-500.0,9.108e-05,2]
[355733616,1741517432491,-500.0,9.108e-05,2]
[355733618,1741517432502,-500.0,9.108e-05,2]
[355733620,1741517432514,-500.0,9.108e-05,2]
[355733622,1741517432526,-500.0,9.108e-05,2]
[355733624,1741517432537,-500.0,9.108e-05,2]
[355733627,1741517432553,-500.0,9.108e-05,2]
[355733628,1741517432565,-500.0,9.108e-05,2]
[355733631,1741517432577,-500.0,9.108e-05,2]
[355733633,1741517432594,-500.0,9.108e-05,2]
[355733635,1741517432606,-1738.54,9.108e-05,2]
[355733637,1741517432618,-500.0,9.108e-05,2]
[355733639,1741517432633,-500.0,9.108e-05,2]
[355733641,1741517432646,-500.0,9.108e-05,2]
[355733643,1741517432659,-500.0,9.108e-05,2]
[355733645,1741517432670,-500.0,9.108e-05,2]
[355733648,1741517432682,-3116.07,9.108e-05,2]
[355733650,1741517432695,-500.0,9.108e-05,2]
[355733652,1741517432707,-500.0,9.108e-05,2]
[355733654,1741517432718,-500.0,9.108e-05,2]
[355733656,1741517432730,-500.0,9.108e-05,2]
[355733658,1741517432741,-500.0,9.108e-05,2]
[355733661,1741517432752,-806.53,9.108e-05,2]
[355733663,1741517432763,-500.0,9.108e-05,2]
[355733665,1741517432776,-500.0,9.108e-05,2]
[355733667,1741517432787,-500.0,9.108e-05,2]
[355733670,1741517432799,-1452.42,9.108e-05,2]
[355733672,1741517432810,-500.0,9.108e-05,2]
[355733673,1741517432822,-500.0,9.108e-05,2]
[355733674,1741517432838,-1813.0,9.108e-05,2]
[355733676,1741517432849,-500.0,9.108e-05,2]
[355733678,1741517432860,-997.76,9.108e-05,2]
[355733680,1741517432871,-500.0,9.108e-05,2]
[355733681,1741517432883,-500.0,9.108e-05,2]
[355733682,1741517432895,-2086.93,9.108e-05,2]
[355733683,1741517432908,-500.0,9.108e-05,2]
[355733684,1741517432920,-500.0,9.108e-05,2]
[355733685,1741517432931,-1103.75,9.108e-05,2]
[355733686,1741517432944,-1338.51,9.108e-05,2]
[355733687,1741517432956,-500.0,9.108e-05,2]
[355733688,1741517432968,-517.43499409,9.108e-05,2]
[355733689,1741517432980,-500.0,9.108e-05,2]
[355733690,1741517432993,-1010.05,9.108e-05,2]
[355733691,1741517433007,-2214.01795513,9.108e-05,2]
[355733692,1741517433052,-157.31204487,9.108e-05,2]
[355733693,1741517433065,-500.0,9.108e-05,2]
[355733694,1741517433078,-679.31,9.108e-05,2]
[355733695,1741517433094,-521.74190224,9.108e-05,2]
[355733696,1741517433108,-3708.05,9.108e-05,2]
[355733697,1741517433120,-514.60575319,9.108e-05,2]
[355733698,1741517433132,-1681.27,9.108e-05,2]
[355733699,1741517433145,-513.00070147,9.108e-05,2]
[355733700,1741517433156,-500.0,9.108e-05,2]
[355733701,1741517433168,-1247.31,9.108e-05,2]
[355733702,1741517433180,-500.0,9.108e-05,2]
[355733703,1741517433192,-500.0,9.108e-05,2]
[355733704,1741517433205,-1239.83,9.108e-05,2]
[355733705,1741517433217,-1500.5206521,9.108e-05,2]
[355733706,1741517433257,-658.53,9.108e-05,2]
[355733707,1741517433328,-180.5993479,9.108e-05,2]
[355733708,1741517433345,-1560.83,9.108e-05,2]
[355733709,1741517433359,-500.0,9.108e-05,2]
[355733710,1741517433371,-3156.6518296,9.108e-05,2]
[355733717,1741517437739,-2933.5281704,9.108e-05,2]
[355733718,1741517437751,-503.87194608,9.108e-05,2]
[355733719,1741517437762,-633.5,9.108e-05,2]
[355733720,1741517437773,-2817.75,9.108e-05,2]
[355733721,1741517437785,-1111.73,9.108e-05,2]
[355733722,1741517437796,-1729.08,9.108e-05,2]
[355733723,1741517437809,-531.5809605,9.108e-05,2]
[355733724,1741517437820,-500.0,9.108e-05,2]
[355733725,1741517437832,-1880.35,9.108e-05,2]
[355733726,1741517437854,-1138.06,9.108e-05,2]
[355733727,1741517437865,-752.48,9.108e-05,2]
[355733728,1741517437876,-900.24,9.108e-05,2]
[355733729,1741517437888,-603.55,9.108e-05,2]
[355733730,1741517437900,-835.91,9.108e-05,2]
[355733731,1741517437912,-2142.23,9.108e-05,2]
[355733732,1741517437924,-1130.54,9.108e-05,2]
[355733733,1741517437934,-880.45,9.108e-05,2]
[355733734,1741517437946,-500.0,9.108e-05,2]
[355733735,1741517437958,-500.0,9.108e-05,2]
[355733736,1741517437969,-1184.93,9.108e-05,2]
[355733737,1741517437980,-500.0,9.108e-05,2]
[355733738,1741517437991,-983.29,9.108e-05,2]
[355733739,1741517438002,-4846.03,9.108e-05,2]
[355733740,1741517438010,-500.0,9.108e-05,2]
[355733741,1741517438020,-2967.09,9.108e-05,2]
[355733742,1741517438030,-281.40904348,9.108e-05,2]
[355733743,1741517438040,-558.42139696,9.108e-05,2]
[355733744,1741517438068,-6.71860304,9.108e-05,2]
[355733745,1741517438078,-500.0,9.108e-05,2]
[355733746,1741517438094,-986.55,9.108e-05,2]
[355733747,1741517438104,-544.66,9.108e-05,2]
[355733748,1741517438115,-1457.49,9.108e-05,2]
[355733749,1741517438125,-733.35,9.108e-05,2]
[355733751,1741517438136,-500.0,9.108e-05,2]
[355733752,1741517438146,-321.16,9.109e-05,2]
[355733753,1741517438156,-500.0,9.109e-05,2]
[355733754,1741517438167,-520.69687891,9.109e-05,2]
[355733755,1741517438177,-500.0,9.109e-05,2]
[355733757,1741517438187,-500.0,9.109e-05,2]
[355733759,1741517438197,-308.73720317,9.109e-05,2]
[355733760,1741517438207,-500.0,9.109e-05,2]
[355733761,1741517438218,-633.1,9.109e-05,2]
[355733762,1741517438228,-500.0,9.109e-05,2]
[355733763,1741517438239,-500.0,9.109e-05,2]
[355733764,1741517438250,-500.0,9.109e-05,2]
[355733765,1741517438261,-500.0,9.109e-05,2]
[355733766,1741517438271,-500.0,9.109e-05,2]
[355733767,1741517438281,-500.0,9.109e-05,2]
[355733768,1741517438293,-500.0,9.109e-05,2]
[355733769,1741517438304,-355.90754729,9.109e-05,2]
[355733770,1741517438314,-500.0,9.109e-05,2]
[355733771,1741517438324,-500.0,9.109e-05,2]
[355733772,1741517438334,-500.0,9.109e-05,2]
[355733773,1741517438349,-500.0,9.109e-05,2]
[355733774,1741517438358,-519.3,9.109e-05,2]
[355733775,1741517438368,-500.0,9.109e-05,2]
[355733776,1741517438379,-500.0,9.109e-05,2]
[355733777,1741517438389,-500.0,9.109e-05,2]
[355733778,1741517438399,-500.0,9.109e-05,2]
[355733779,1741517438411,-500.0,9.109e-05,2]
[355733780,1741517438421,-500.0,9.109e-05,2]
[355733781,1741517438432,-500.0,9.109e-05,2]
[355733782,1741517438442,-500.0,9.109e-05,2]
[355733783,1741517438453,-582.02,9.109e-05,2]
[355733784,1741517438463,-500.0,9.109e-05,2]
[355733785,1741517438475,-500.0,9.109e-05,2]
[355733786,1741517438485,-500.0,9.109e-05,2]
[355733787,1741517438496,-500.0,9.109e-05,2]
[355733788,1741517438506,-500.0,9.109e-05,2]
[355733789,1741517438518,-500.0,9.109e-05,2]
[355733790,1741517438530,-500.0,9.109e-05,2]
[355733791,1741517438541,-500.0,9.109e-05,2]
[355733792,1741517438556,-500.0,9.109e-05,2]
[355733793,1741517438566,-500.0,9.109e-05,2]
[355733794,1741517438577,-500.0,9.109e-05,2]
[355733795,1741517438591,-500.0,9.109e-05,2]
[355733796,1741517438601,-500.0,9.109e-05,2]
[355733798,1741517438612,-500.0,9.109e-05,2]
[355733799,1741517438623,-500.0,9.109e-05,2]
[355733800,1741517438633,-500.0,9.109e-05,2]
[355733801,1741517438643,-500.0,9.109e-05,2]
[355733802,1741517438653,-500.0,9.109e-05,2]
[355733803,1741517438663,-500.0,9.109e-05,2]
[355733804,1741517438672,-500.0,9.109e-05,2]
[355733805,1741517438682,-500.0,9.109e-05,2]
[355733806,1741517438692,-500.0,9.109e-05,2]
[355733807,1741517438704,-500.0,9.109e-05,2]
[355733808,1741517438714,-500.0,9.109e-05,2]
[355733809,1741517438724,-500.0,9.109e-05,2]
[355733810,1741517438734,-500.0,9.109e-05,2]
[355733811,1741517438743,-500.0,9.109e-05,2]
[355733812,1741517438753,-500.0,9.109e-05,2]
[355733813,1741517438763,-500.0,9.109e-05,2]
[355733814,1741517438773,-500.0,9.109e-05,2]
[355733815,1741517438791,-500.0,9.109e-05,2]
[355733816,1741517438804,-500.0,9.109e-05,2]
[355733817,1741517438814,-500.0,9.109e-05,2]
[355733818,1741517438824,-500.0,9.109e-05,2]
[355733819,1741517438833,-500.0,9.109e-05,2]
[355733820,1741517438848,-632.02,9.109e-05,2]
[355733821,1741517438858,-500.0,9.109e-05,2]
[355733822,1741517438868,-500.0,9.109e-05,2]
[355733823,1741517438878,-500.0,9.109e-05,2]
[355733824,1741517438888,-500.0,9.109e-05,2]
[355733825,1741517438896,-500.0,9.109e-05,2]
[355733826,1741517438905,-555.0,9.109e-05,2]
[355733827,1741517438915,-500.0,9.109e-05,2]
[355733828,1741517438925,-500.0,9.109e-05,2]
[355733829,1741517438934,-500.0,9.109e-05,2]
[355733830,1741517438944,-500.0,9.109e-05,2]
[355733831,1741517438955,-500.0,9.109e-05,2]
[355733832,1741517438964,-500.0,9.109e-05,2]
[355733833,1741517438974,-895.95,9.109e-05,2]
[355733834,1741517438983,-500.0,9.109e-05,2]
[355733835,1741517438993,-500.0,9.109e-05,2]
[355733836,1741517439003,-595.27,9.109e-05,2]
[355733837,1741517439013,-500.0,9.109e-05,2]
[355733838,1741517439022,-795.46,9.109e-05,2]
[355733839,1741517439031,-500.0,9.109e-05,2]
[355733840,1741517439041,-500.0,9.109e-05,2]
[355733841,1741517439051,-555.4,9.109e-05,2]
[355733842,1741517439061,-500.0,9.109e-05,2]
[355733843,1741517439070,-500.0,9.109e-05,2]
[355733844,1741517439079,-638.04,9.109e-05,2]
[355733845,1741517439093,-538.59,9.109e-05,2]
[355733846,1741517439102,-576.47,9.109e-05,2]
[355733847,1741517439112,-510.40006655,9.109e-05,2]
[355733848,1741517439124,-500.0,9.109e-05,2]
[355733849,1741517439135,-500.0,9.109e-05,2]
[355733850,1741517439146,-738.75,9.109e-05,2]
[355733851,1741517439155,-500.0,9.109e-05,2]
[355733852,1741517439165,-500.0,9.109e-05,2]
[355733853,1741517439174,-653.24,9.109e-05,2]
[355733854,1741517439184,-740.21,9.109e-05,2]
[355733855,1741517439194,-500.0,9.109e-05,2]
[355733856,1741517439203,-500.0,9.109e-05,2]
[355733857,1741517439213,-500.0,9.109e-05,2]
[355733858,1741517439223,-623.91,9.109e-05,2]
[355733859,1741517439233,-500.0,9.109e-05,2]
[355733860,1741517439242,-661.2,9.109e-05,2]
[355733861,1741517439252,-606.07,9.109e-05,2]
[355733862,1741517439263,-3756.99,9.109e-05,2]
[355733863,1741517439272,-1172.83,9.109e-05,2]
[355733864,1741517439283,-500.0,9.109e-05,2]
[355733865,1741517439294,-1812.61,9.109e-05,2]
[355733866,1741517439305,-688.74,9.109e-05,2]
[355733867,1741517439314,-638.16,9.109e-05,2]
[355733868,1741517439324,-1202.89,9.109e-05,2]
[355733869,1741517439335,-1976.68,9.109e-05,2]
[355733870,1741517439348,-2745.37,9.109e-05,2]
[355733871,1741517439358,-7952.4,9.109e-05,2]
[355733872,1741517439368,-500.0,9.109e-05,2]
[355733873,1741517439378,-500.0,9.109e-05,2]
[355733874,1741517439387,-1357.06,9.109e-05,2]
[355733875,1741517439397,-341.71313527,9.109e-05,2]
[355733876,1741517439420,-158.28686473,9.109e-05,2]
[355733877,1741517439430,-153.8017401,9.109e-05,2]
[355733878,1741517439442,-714.4482599,9.109e-05,2]
[355733879,1741517439452,-138.9567401,9.109e-05,2]
[355733880,1741517439465,-361.0432599,9.109e-05,2]
[355733881,1741517439474,-66.2267401,9.109e-05,2]
[355733890,1741517440389,-1180.82964998,9.109e-05,2]
[355733891,1741517440401,-280.86400004,9.109e-05,2]
[355733892,1741517440432,-236.93960988,9.109e-05,2]
[355733893,1741517440443,-629.02,9.109e-05,2]
[355733894,1741517440454,-867.61,9.109e-05,2]
[355733895,1741517440464,-997.05,9.109e-05,2]
[355733896,1741517440475,-1457.82,9.109e-05,2]
[355733897,1741517440485,-500.0,9.109e-05,2]
[355733898,1741517440496,-768.63,9.109e-05,2]
[355733899,1741517440506,-500.0,9.109e-05,2]
[355733900,1741517440517,-1000.0,9.109e-05,2]
[355733901,1741517440527,-873.28,9.109e-05,2]
[355733902,1741517440540,-463.10115535,9.109e-05,2]
[355733903,1741517440557,-36.89884465,9.109e-05,2]
[355733904,1741517440570,-843.49763536,9.109e-05,2]
[355733905,1741517440592,-749.19236464,9.109e-05,2]
[355733906,1741517440604,-500.0,9.109e-05,2]
[355733907,1741517440615,-1168.45,9.109e-05,2]
[355733908,1741517440625,-500.0,9.109e-05,2]
[355733909,1741517440635,-623.06,9.109e-05,2]
[355733910,1741517440648,-500.0,9.109e-05,2]
[355733911,1741517440659,-297.06188333,9.109e-05,2]
[355733912,1741517440849,-1135.60811667,9.109e-05,2]
[355733913,1741517440869,-222.61579511,9.109e-05,2]
[355733926,1741517443455,-260.80493133,9.108e-05,2]
[355733927,1741517443468,-239.19506867,9.108e-05,2]
[355733928,1741517443478,-1117.76420489,9.109e-05,2]
[355733929,1741517443488,-350.29627644,9.109e-05,2]
[355733930,1741517443509,-149.70372356,9.109e-05,2]
[355733931,1741517443519,-874.33919249,9.109e-05,2]
[355733932,1741517443530,-927.77,9.109e-05,2]
[355733933,1741517443543,-1158.23080751,9.109e-05,2]
[355733934,1741517443555,-500.0,9.109e-05,2]
[355733935,1741517443564,-498.8147778,9.109e-05,2]
[355733936,1741517443576,-1.1852222,9.109e-05,2]
[355733937,1741517443589,-528.92,9.109e-05,2]
[355733938,1741517443598,-1164.95,9.109e-05,2]
[355733939,1741517443607,-1178.63,9.109e-05,2]
[355733940,1741517443616,-433.21421126,9.109e-05,2]
[355733950,1741517445846,-521.98883467,9.108e-05,2]
[355733951,1741517445858,-1011.37755825,9.108e-05,2]
[355733952,1741517445870,-1097.61360708,9.108e-05,2]
[355733953,1741517445879,-114.93578874,9.109e-05,2]
[355733954,1741517445889,-505.4,9.109e-05,2]
[355733955,1741517445898,-560.56005694,9.109e-05,2]
[355733956,1741517445947,-79.14994306,9.109e-05,2]
[355733957,1741517445957,-794.87,9.109e-05,2]
[355733958,1741517445967,-567.85,9.109e-05,2]
[355733959,1741517445977,-535.48,9.109e-05,2]
[355733960,1741517445987,-588.73400109,9.109e-05,2]
[355733961,1741517445996,-854.6,9.109e-05,2]
[355733962,1741517446006,-822.59,9.109e-05,2]
[355733963,1741517446015,-960.43,9.109e-05,2]
[355733964,1741517446024,-500.0,9.109e-05,2]
[355733965,1741517446033,-500.0,9.109e-05,2]
[355733966,1741517446043,-975.67,9.109e-05,2]
[355733967,1741517446052,-500.0,9.109e-05,2]
[355733968,1741517446061,-500.0,9.109e-05,2]
[355733969,1741517446071,-1234.6,9.109e-05,2]
[355733970,1741517446080,-2083.73,9.109e-05,2]
[355733971,1741517446091,-1333.54,9.109e-05,2]
[355733972,1741517446101,-1937.26,9.109e-05,2]
[355733973,1741517446111,-500.0,9.109e-05,2]
[355733974,1741517446120,-10906.84,9.109e-05,2]
[355733975,1741517446130,-500.0,9.109e-05,2]
[355733976,1741517446140,-1038.0,9.109e-05,2]
[355733977,1741517446149,-500.0,9.109e-05,2]
[355733978,1741517446158,-674.49,9.109e-05,2]
[355733979,1741517446167,-1331.29,9.109e-05,2]
[355733980,1741517446178,-1152.77,9.109e-05,2]
[355733981,1741517446188,-500.0,9.109e-05,2]
[355733982,1741517446199,-500.0,9.109e-05,2]
[355733983,1741517446210,-500.0,9.109e-05,2]
[355733985,1741517446220,-500.0,9.109e-05,2]
[355733986,1741517446231,-500.0,9.109e-05,2]
[355733988,1741517446242,-265.42737276,9.109e-05,2]
[355733989,1741517446252,-70126.4795884,9.11e-05,2]
[355733990,1741517446264,-853.8,9.11e-05,2]
[355733992,1741517446298,-1853.1001,9.11e-05,2]
[355733993,1741517446314,-266.43681,9.11e-05,2]
[355733994,1741517446326,-415.64275021,9.11e-05,2]
[355733996,1741517446335,-672.85457282,9.11e-05,2]
[355734003,1741517607269,900.0,0.00028,120]
[355734009,1741517957629,-300.0,8.134e-05,2]
[355734010,1741518179263,1224.32057573,8.073e-05,2]
[355734011,1741518179291,775.67942427,8.073e-05,2]
[355734012,1741518212789,699.55,8.082e-05,2]
[355734016,1741518354115,936.99381822,8.077e-05,2]
[355734017,1741518354145,2372.82902055,8.077e-05,2]
[355734018,1741518354173,1335.30504103,8.077e-05,2]
[355734019,1741518354202,2392.62639977,8.077e-05,2]
[355734020,1741518354231,2984.50646105,8.077e-05,2]
[355734021,1741518354260,3471.9316936,8.077e-05,2]
[355734022,1741518354287,3074.77562718,8.077e-05,2]
[355734023,1741518354313,7331.0319386,8.077e-05,2]
[355734024,1741518356502,153.99,8.077e-05,2]
[355734144,1741518632033,-153.99,8.115e-05,2]
[355734145,1741518632042,-1251.4,8.134e-05,2]
[355734146,1741518632052,-153.99,8.152e-05,2]
[355734147,1741518632061,-153.99,8.189e-05,2]
[355734148,1741518632070,-300.0,8.218e-05,2]
[355734149,1741518632079,-165.07,8.219e-05,2]
[355734150,1741518632088,-250.0,8.219e-05,2]
[355734151,1741518632098,-398.51,8.219e-05,2]
[355734152,1741518632107,-1738.75,8.219e-05,2]
[355734153,1741518632117,-1500.0,8.219e-05,2]
[355734154,1741518632126,-1000.0,8.219e-05,2]
[355734155,1741518632136,-153.99,8.226e-05,2]
[355734156,1741518632145,-2231.18,8.264e-05,2]
[355734157,1741518632154,-1807.86,8.264e-05,2]
[355734158,1741518632163,-153.99,8.264e-05,2]
[355734159,1741518632172,-153.99,8.301e-05,2]
[355734160,1741518632183,-153.99,8.338e-05,2]
[355734161,1741518632192,-153.99,8.376e-05,2]